fUSD/lending_fUSD_20250629
["ID","MTS","AMOUNT","RATE_DAILY","PERIOD"]
[368469807,1751187064143,-490.0,0.00027671,3]
[368469808,1751187064153,-2403.14,0.00027671,3]
[368469809,1751187064163,-2800.43,0.00027671,3]
[368469810,1751187064384,-490.0,0.00027671,3]
[368469811,1751187064395,-1316.24,0.00027671,3]
[368469812,1751187064404,-2176.86,0.00027671,3]
[368469813,1751187064414,-369.36760611,0.00027671,3]
[368469814,1751187064424,-490.0,0.00027671,3]
[368469815,1751187064434,-2397.77,0.00027671,3]
[368469816,1751187064443,-1164.32,0.00027671,3]
[368469817,1751187064452,-490.0,0.00027671,3]
[368469818,1751187064462,-2243.74,0.00027671,3]
[368469819,1751187064472,-1661.22,0.00027671,3]
[368469820,1751187064482,-556.32,0.00027671,3]
[368469821,1751187064492,-4519.09,0.00027671,3]
[368469822,1751187064501,-490.0,0.00027671,3]
[368469823,1751187064511,-490.0,0.00027671,3]
[368469824,1751187064521,-490.0,0.00027671,3]
[368469825,1751187064531,-4490.8,0.00027671,3]
[368469826,1751187064540,-490.0,0.00027671,3]
[368469827,1751187064551,-576.43,0.00027671,3]
[368469828,1751187064560,-1867.63,0.00027671,3]
[368469829,1751187064570,-1472.05,0.00027671,3]
[368469830,1751187064579,-2613.6,0.00027671,3]
[368469831,1751187064589,-1828.7,0.00027671,3]
[368469832,1751187064598,-490.0,0.00027671,3]
[368469833,1751187064608,-527.31,0.00027671,3]
[368469834,1751187064618,-2145.98,0.00027671,3]
[368469835,1751187064629,-490.0,0.00027671,3]
[368469836,1751187064638,-490.0,0.00027671,3]
[368469837,1751187064648,-490.0,0.00027671,3]
[368469838,1751187064658,-490.0,0.00027671,3]
[368469839,1751187064669,-2625.36,0.00027671,3]
[368469840,1751187064678,-707.87,0.00027671,3]
[368469841,1751187064688,-490.0,0.00027671,3]
[368469842,1751187064697,-490.0,0.00027671,3]
[368469843,1751187064707,-1636.61,0.00027671,3]
[368469844,1751187064716,-490.0,0.00027671,3]
[368469845,1751187064726,-1645.38,0.00027671,3]
[368469846,1751187064735,-1994.66,0.00027671,3]
[368469847,1751187064745,-992.54,0.00027671,3]
[368469848,1751187064755,-2675.06,0.00027671,3]
[368469849,1751187064764,-2682.14,0.00027671,3]
[368469850,1751187064773,-490.0,0.00027671,3]
[368469851,1751187064783,-603.26,0.00027671,3]
[368469852,1751187064792,-1959.22,0.00027671,3]
[368469853,1751187064802,-13159.21,0.00027671,3]
[368469854,1751187064812,-503.77,0.00027671,3]
[368469855,1751187064821,-1803.26,0.00027671,3]
[368469856,1751187064831,-490.0,0.00027671,3]
[368469857,1751187064840,-511.8,0.00027671,3]
[368469858,1751187064849,-648.57,0.00027671,3]
[368469859,1751187064859,-3196.84,0.00027671,3]
[368469860,1751187064872,-490.0,0.00027671,3]
[368469861,1751187064883,-490.0,0.00027671,3]
[368469862,1751187064893,-490.0,0.00027671,3]
[368469863,1751187064903,-490.0,0.00027671,3]
[368469864,1751187064912,-490.0,0.00027671,3]
[368469865,1751187064922,-2237.46,0.00027671,3]
[368469866,1751187064931,-1231.54,0.00027671,3]
[368469867,1751187064941,-477.27552632,0.00027671,3]
[368469868,1751187064950,-2992.23,0.00027671,3]
[368469869,1751187064960,-490.0,0.00027671,3]
[368469870,1751187064970,-490.0,0.00027671,3]
[368469871,1751187064979,-2417.32,0.00027671,3]
[368469872,1751187064988,-2292.96,0.00027671,3]
[368469873,1751187064998,-490.0,0.00027671,3]
[368469874,1751187065008,-490.0,0.00027671,3]
[368469875,1751187065017,-189.43836161,0.00027671,3]
[368469876,1751187065027,-490.0,0.00027671,3]
[368469877,1751187065036,-2195.8,0.00027671,3]
[368469878,1751187065045,-1217.5,0.00027671,3]
[368469879,1751187065055,-3248.72,0.00027671,3]
[368469880,1751187065064,-490.0,0.00027671,3]
[368469881,1751187065074,-1907.35,0.00027671,3]
[368469882,1751187065083,-919.5,0.00027671,3]
[368469883,1751187065093,-27501.96,0.00027671,3]
[368469884,1751187065103,-1408.98,0.00027671,3]
[368469885,1751187065114,-151.73726435,0.00027671,3]
[368469886,1751187065124,-490.0,0.00027671,3]
[368469887,1751187065134,-7314.87,0.00027671,3]
[368469888,1751187065144,-490.0,0.00027671,3]
[368469889,1751187065154,-490.0,0.00027671,3]
[368469890,1751187065164,-1001.24,0.00027671,3]
[368469891,1751187065174,-490.0,0.00027671,3]
[368469892,1751187065184,-1302.8,0.00027671,3]
[368469893,1751187065195,-585.39453737,0.00027671,3]
[368469894,1751187065204,-490.0,0.00027671,3]
[368469895,1751187065214,-1455.38,0.00027671,3]
[368469896,1751187065224,-490.0,0.00027671,3]
[368469897,1751187065235,-490.0,0.00027671,3]
[368469898,1751187065245,-540.84,0.00027671,3]
[368469899,1751187065255,-490.0,0.00027671,2]
[368469900,1751187065265,-1769.89,0.00027671,3]
[368469901,1751187065275,-1729.32,0.00027671,3]
[368469902,1751187065285,-490.0,0.00027671,3]
[368469903,1751187065294,-3146.87,0.00027671,3]
[368469904,1751187065304,-490.0,0.00027671,3]
[368469905,1751187065314,-490.0,0.00027671,3]
[368469906,1751187065324,-490.0,0.00027671,3]
[368469907,1751187065334,-490.0,0.00027671,3]
[368469908,1751187065343,-490.0,0.00027671,3]
[368469909,1751187065353,-490.0,0.00027671,3]
[368469910,1751187065364,-604.79,0.00027671,3]
[368469911,1751187065375,-134.38781899,0.00027671,3]
[368469912,1751187066759,-162.16,0.00026601,2]
[368469913,1751187066769,-1072.44218101,0.00027671,3]
[368469914,1751187066779,-490.0,0.00027671,3]
[368469915,1751187066788,-3003.36,0.00027671,3]
[368469916,1751187066796,-6375.23,0.00027671,3]
[368469917,1751187066806,-622.65,0.00027671,3]
[368469918,1751187066815,-2408.16,0.00027671,3]
[368469919,1751187066824,-2494.99,0.00027671,3]
[368469920,1751187066834,-5398.34,0.00027671,3]
[368469921,1751187066843,-1525.97,0.00027671,3]
[368469922,1751187066852,-843.07,0.00027671,3]
[368469923,1751187066867,-2375.81,0.00027671,3]
[368469924,1751187066877,-2876.73,0.00027671,3]
[368469925,1751187066887,-490.0,0.00027671,3]
[368469926,1751187066896,-490.0,0.00027671,3]
[368469927,1751187066905,-494.45469921,0.00027671,3]
[368469928,1751187066914,-490.0,0.00027671,3]
[368469929,1751187066923,-1071.51,0.00027671,3]
[368469930,1751187066932,-496.06,0.00027671,3]
[368469931,1751187066941,-490.0,0.00027671,3]
[368469932,1751187066950,-4774.91,0.00027671,3]
[368469933,1751187066960,-1188.54,0.00027671,3]
[368469934,1751187066969,-950.16,0.00027671,3]
[368469935,1751187066978,-300.77,0.00027671,2]
[368469936,1751187066987,-500.0,0.00027673,5]
[368469937,1751187066997,-500.0,0.00027673,5]
[368469938,1751187067006,-500.0,0.00027673,5]
[368469939,1751187067014,-500.0,0.00027673,5]
[368469940,1751187067024,-500.0,0.00027673,5]
[368469941,1751187067033,-500.0,0.00027673,5]
[368469942,1751187067042,-536.83959098,0.00027673,5]
[368469943,1751187067051,-500.0,0.00027673,5]
[368469944,1751187067071,-498.3130796,0.00027673,5]
[368469945,1751187067087,-164.71044508,0.00027673,5]
[368469946,1751187067104,-166.20442101,0.00027673,5]
[368469947,1751187067121,-160.34924671,0.00027673,5]
[368469948,1751187067138,-500.0,0.00027673,5]
[368469949,1751187067153,-500.0,0.00027673,5]
[368469950,1751187067170,-512.24382844,0.00027673,5]
[368469951,1751187067187,-552.18551164,0.00027673,5]
[368469952,1751187067204,-500.0,0.00027673,5]
[368469953,1751187067222,-500.0,0.00027673,5]
[368469954,1751187067239,-160.51874416,0.00027673,5]
[368469955,1751187067255,-500.0,0.00027673,5]
[368469956,1751187067271,-500.0,0.00027673,5]
[368469957,1751187067286,-500.0,0.00027673,5]
[368469958,1751187067299,-517.40953871,0.00027673,5]
[368469959,1751187067318,-500.0,0.00027673,5]
[368469960,1751187067330,-500.0,0.00027673,5]
[368469961,1751187067347,-500.0,0.00027673,5]
[368469962,1751187067360,-500.0,0.00027673,5]
[368469963,1751187067372,-500.0,0.00027673,5]
[368469964,1751187067392,-517.41248013,0.00027673,5]
[368469965,1751187067405,-515.34551624,0.00027673,5]
[368469966,1751187067419,-500.0,0.00027673,5]
[368469967,1751187067433,-500.0,0.00027673,5]
[368469968,1751187067446,-171.99311108,0.00027681,2]
[368469969,1751187067459,-7105.39356351,0.00027682,2]
[368469970,1751187067473,-7105.39356351,0.00027682,2]
[368469971,1751187067487,-998.75446784,0.00027682,2]
[368469972,1751187067501,-19142.02624847,0.00027683,2]
[368469973,1751187067515,-200.0,0.00027687,2]
[368469974,1751187067529,-1925.06356175,0.00027688,2]
[368469975,1751187067542,-2763.64545287,0.00027689,2]
[368469976,1751187067557,-604.03219365,0.00027692,2]
[368469977,1751187067570,-25995.72682738,0.00027695,2]
[368469978,1751187067583,-1498.13170178,0.00027698,2]
[368469979,1751187067597,-200.0,0.00027698,2]
[368469980,1751187067610,-200.0,0.00027699,2]
[368469981,1751187067623,-5200.0,0.000277,10]
[368469982,1751187067638,-604.03219365,0.00027703,2]
[368469983,1751187067651,-3579.52343868,0.00027705,2]
[368469984,1751187067665,-25995.72682738,0.00027706,2]
[368469985,1751187067678,-349.44175456,0.00027708,2]
[368469986,1751187067691,-200.0,0.00027711,2]
[368469987,1751187067705,-200.0,0.00027715,2]
[368469988,1751187067719,-200.0,0.00027716,2]
[368469989,1751187067733,-251.14043866,0.00027717,2]
[368469990,1751187067747,-226.08271043,0.00027718,2]
[368469991,1751187067760,-25995.72682738,0.00027719,2]
[368469992,1751187067774,-200.0,0.0002772,2]
[368469993,1751187067788,-2111.66649243,0.00027723,2]
[368469994,1751187067802,-4320.9438701,0.00027724,2]
[368469995,1751187067816,-1498.13170178,0.00027727,2]
[368469996,1751187067831,-251.14043866,0.00027729,2]
[368469997,1751187067845,-1925.06356175,0.00027729,2]
[368469998,1751187067859,-922.39080498,0.0002773,2]
[368469999,1751187067877,-214.0,0.0002773,2]
[368470000,1751187067891,-19142.02624847,0.00027732,2]
[368470001,1751187067905,-226.08271043,0.00027735,2]
[368470002,1751187067917,-1925.06356175,0.00027737,2]
[368470003,1751187067931,-6731.53979212,0.00027738,2]
[368470004,1751187067944,-1307.89301327,0.00027739,2]
[368470005,1751187067957,-200.0,0.00027742,2]
[368470006,1751187067971,-200.0,0.00027743,2]
[368470007,1751187067985,-3579.52343868,0.00027744,2]
[368470008,1751187067998,-998.75446784,0.00027748,2]
[368470009,1751187068011,-3579.52343868,0.0002775,2]
[368470010,1751187068024,-2763.64545287,0.00027753,2]
[368470011,1751187068039,-998.75446784,0.00027754,2]
[368470012,1751187068052,-200.0,0.00027754,2]
[368470013,1751187068065,-998.75446784,0.00027756,2]
[368470014,1751187068079,-38937.36012585,0.00027757,2]
[368470015,1751187068092,-577.95091294,0.0002776,2]
[368470016,1751187068106,-6731.53979212,0.00027762,2]
[368470017,1751187068119,-2763.64545287,0.00027764,2]
[368470018,1751187068133,-251.14043866,0.00027772,2]
[368470019,1751187068147,-200.0,0.00027773,2]
[368470020,1751187068161,-2763.64545287,0.00027774,2]
[368470021,1751187068175,-1307.89301327,0.00027774,2]
[368470022,1751187068188,-200.0,0.00027779,2]
[368470023,1751187068201,-577.95091294,0.00027779,2]
[368470024,1751187068215,-604.03219365,0.0002778,2]
[368470025,1751187068228,-1307.89301327,0.0002778,2]
[368470026,1751187068241,-7105.39356351,0.00027781,2]
[368470027,1751187068255,-19142.02624847,0.00027782,2]
[368470028,1751187068268,-1498.13170178,0.00027782,2]
[368470029,1751187068281,-4320.9438701,0.00027783,2]
[368470030,1751187068294,-604.03219365,0.00027784,2]
[368470031,1751187068308,-2111.66649243,0.00027784,2]
[368470032,1751187068321,-200.0,0.00027785,2]
[368470033,1751187068335,-1307.89301327,0.0002779,2]
[368470034,1751187068348,-226.08271043,0.0002779,2]
[368470035,1751187068361,-2763.64545287,0.00027792,2]
[368470036,1751187068374,-1925.06356175,0.00027793,2]
[368470037,1751187068388,-1307.89301327,0.00027794,2]
[368470038,1751187068401,-922.39080498,0.000278,2]
[368470039,1751187068414,-1000.0,0.000278,10]
[368470040,1751187068428,-4320.9438701,0.00027803,2]
[368470041,1751187068440,-7105.39356351,0.00027806,2]
[368470042,1751187068455,-577.95091294,0.00027812,2]
[368470043,1751187068469,-200.0,0.00027812,2]
[368470044,1751187068482,-200.0,0.00027813,2]
[368470045,1751187068495,-226.08271043,0.00027814,2]
[368470046,1751187068509,-1925.06356175,0.00027815,2]
[368470047,1751187068522,-200.0,0.00027822,2]
[368470048,1751187068536,-19142.02624847,0.00027825,2]
[368470049,1751187068551,-200.0,0.00027825,2]
[368470050,1751187068565,-922.39080498,0.00027828,2]
[368470051,1751187068579,-251.14043866,0.00027829,2]
[368470052,1751187068593,-226.08271043,0.0002783,2]
[368470053,1751187068606,-4320.9438701,0.00027831,2]
[368470054,1751187068619,-1056.0,0.00027833,5]
[368470055,1751187068633,-922.39080498,0.00027835,2]
[368470056,1751187068647,-577.95091294,0.00027835,2]
[368470057,1751187068660,-2110.0,0.00027835,2]
[368470058,1751187068672,-200.0,0.00027837,2]
[368470059,1751187068685,-5799.71375091,0.00027838,2]
[368470060,1751187068795,-653.35,0.00027397,3]
[368470061,1751187068808,-1465.92,0.00027671,3]
[368470062,1751187068821,-8349.34907865,0.00027838,2]
[368470063,1751187068835,-38937.36012585,0.00027839,2]
[368470064,1751187068849,-14149.06282956,0.00027839,2]
[368470065,1751187068862,-14149.06282956,0.00027842,2]
[368470066,1751187068877,-577.95091294,0.00027842,2]
[368470067,1751187068891,-998.75446784,0.00027843,2]
[368470068,1751187068904,-217.06446343,0.00027845,2]
[368470069,1751187068916,-2111.66649243,0.00027845,2]
[368470070,1751187068925,-4719.48301881,0.00027845,2]
[368470071,1751187068934,-185.49347121,0.00027845,2]
[368470072,1751187068943,-385.26560128,0.00027845,2]
[368470073,1751187068952,-38937.36012585,0.00027845,2]
[368470074,1751187068961,-200.0,0.00027846,2]
[368470075,1751187068971,-7105.39356351,0.00027849,2]
[368470076,1751187068981,-19142.02624847,0.00027854,2]
[368470077,1751187068991,-1498.13170178,0.00027857,2]
[368470078,1751187069000,-604.03219365,0.00027858,2]
[368470079,1751187069010,-6731.53979212,0.0002786,2]
[368470080,1751187069019,-3579.52343868,0.00027867,2]
[368470081,1751187069029,-14149.06282956,0.00027869,2]
[368470082,1751187069038,-38937.36012585,0.00027869,2]
[368470083,1751187069047,-14149.06282956,0.00027871,2]
[368470084,1751187069056,-25995.72682738,0.00027873,2]
[368470085,1751187069065,-171.99311108,0.00027878,2]
[368470086,1751187069076,-3579.52343868,0.00027883,2]
[368470087,1751187069086,-922.39080498,0.00027886,2]
[368470088,1751187069095,-1498.13170178,0.00027887,2]
[368470089,1751187069105,-4320.9438701,0.00027889,2]
[368470090,1751187069114,-269.0,0.00027893,2]
[368470091,1751187069123,-114.59287869,0.00027893,2]
[368470092,1751187069136,-154.40712131,0.00027893,2]
[368470093,1751187069145,-269.0,0.00027893,2]
[368470094,1751187069155,-269.0,0.00027893,2]
[368470095,1751187069164,-269.0,0.00027893,2]
[368470096,1751187069173,-269.0,0.00027893,2]
[368470097,1751187069182,-269.0,0.00027893,2]
[368470098,1751187069192,-269.0,0.00027893,2]
[368470099,1751187069201,-269.0,0.00027893,2]
[368470100,1751187069211,-269.0,0.00027893,2]
[368470101,1751187069220,-269.0,0.00027893,2]
[368470102,1751187069230,-269.0,0.00027893,2]
[368470103,1751187069239,-269.0,0.00027893,2]
[368470104,1751187069248,-269.0,0.00027893,2]
[368470105,1751187069258,-269.0,0.00027893,2]
[368470106,1751187069267,-269.0,0.00027893,2]
[368470107,1751187069276,-269.0,0.00027893,2]
[368470108,1751187069286,-269.0,0.00027893,2]
[368470109,1751187069295,-269.0,0.00027893,2]
[368470110,1751187069305,-269.0,0.00027893,2]
[368470111,1751187069314,-269.0,0.00027893,2]
[368470112,1751187069324,-269.0,0.00027893,2]
[368470113,1751187069333,-153.0,0.00027893,2]
[368470114,1751187069343,-153.0,0.00027893,2]
[368470115,1751187069352,-153.0,0.00027893,2]
[368470116,1751187069361,-153.0,0.00027893,2]
[368470117,1751187069370,-153.0,0.00027893,2]
[368470118,1751187069380,-153.0,0.00027893,2]
[368470119,1751187069389,-153.0,0.00027893,2]
[368470120,1751187069398,-153.0,0.00027893,2]
[368470121,1751187069407,-153.0,0.00027893,2]
[368470122,1751187069417,-153.0,0.00027893,2]
[368470123,1751187069426,-269.0,0.00027893,2]
[368470124,1751187069435,-269.0,0.00027893,2]
[368470125,1751187069444,-269.0,0.00027893,2]
[368470126,1751187069454,-269.0,0.00027893,2]
[368470127,1751187070134,-269.0,0.00027893,2]
[368470128,1751187070173,-269.0,0.00027893,2]
[368470129,1751187070202,-269.0,0.00027893,2]
[368470130,1751187070229,-269.0,0.00027893,2]
[368470131,1751187070242,-269.0,0.00027893,2]
[368470132,1751187070251,-269.0,0.00027893,2]
[368470133,1751187070261,-19.54355869,0.00027893,2]
[368470134,1751187071695,-14.26876849,0.00027893,2]
[368470135,1751187071717,-653.35,0.00027671,3]
[368470136,1751187071726,-235.18767282,0.00027893,2]
[368470137,1751187071735,-269.0,0.00027893,2]
[368470138,1751187071744,-269.0,0.00027893,2]
[368470139,1751187071753,-269.0,0.00027893,2]
[368470140,1751187071761,-269.0,0.00027893,2]
[368470141,1751187071770,-153.0,0.00027893,2]
[368470142,1751187071779,-153.0,0.00027893,2]
[368470143,1751187071789,-153.0,0.00027893,2]
[368470144,1751187071798,-153.0,0.00027893,2]
[368470145,1751187071807,-153.0,0.00027893,2]
[368470146,1751187071816,-153.0,0.00027893,2]
[368470147,1751187071826,-153.0,0.00027893,2]
[368470148,1751187071835,-153.0,0.00027893,2]
[368470149,1751187071845,-269.0,0.00027893,2]
[368470150,1751187071854,-269.0,0.00027893,2]
[368470151,1751187071864,-269.0,0.00027893,2]
[368470152,1751187071875,-269.0,0.00027893,2]
[368470153,1751187071885,-269.0,0.00027893,2]
[368470154,1751187071894,-269.0,0.00027893,2]
[368470155,1751187071902,-269.0,0.00027893,2]
[368470156,1751187071911,-269.0,0.00027893,2]
[368470157,1751187071920,-269.0,0.00027893,2]
[368470158,1751187071929,-269.0,0.00027893,2]
[368470159,1751187071938,-269.0,0.00027893,2]
[368470160,1751187071947,-269.0,0.00027893,2]
[368470161,1751187071956,-269.0,0.00027893,2]
[368470162,1751187071965,-269.0,0.00027893,2]
[368470163,1751187071974,-153.0,0.00027893,2]
[368470164,1751187071983,-153.0,0.00027893,2]
[368470165,1751187071992,-153.0,0.00027893,2]
[368470166,1751187072001,-153.0,0.00027893,2]
[368470167,1751187072010,-153.0,0.00027893,2]
[368470168,1751187072019,-153.0,0.00027893,2]
[368470169,1751187072028,-153.0,0.00027893,2]
[368470170,1751187072037,-153.0,0.00027893,2]
[368470171,1751187072046,-153.0,0.00027893,2]
[368470172,1751187072055,-269.0,0.00027893,2]
[368470173,1751187072064,-269.0,0.00027893,2]
[368470174,1751187072073,-269.0,0.00027893,2]
[368470175,1751187072082,-269.0,0.00027893,2]
[368470176,1751187072091,-269.0,0.00027893,2]
[368470177,1751187072100,-269.0,0.00027893,2]
[368470178,1751187072109,-269.0,0.00027893,2]
[368470179,1751187072120,-269.0,0.00027893,2]
[368470180,1751187072129,-269.0,0.00027893,2]
[368470181,1751187072138,-269.0,0.00027893,2]
[368470182,1751187072147,-269.0,0.00027893,2]
[368470183,1751187072157,-269.0,0.00027893,2]
[368470184,1751187072166,-269.0,0.00027893,2]
[368470185,1751187072175,-269.0,0.00027893,2]
[368470186,1751187072184,-153.0,0.00027893,2]
[368470187,1751187072193,-153.0,0.00027893,2]
[368470188,1751187072202,-153.0,0.00027893,2]
[368470189,1751187072212,-153.0,0.00027893,2]
[368470190,1751187072221,-153.0,0.00027893,2]
[368470191,1751187072230,-153.0,0.00027893,2]
[368470192,1751187072239,-153.0,0.00027893,2]
[368470193,1751187072248,-153.0,0.00027893,2]
[368470194,1751187072258,-269.0,0.00027893,2]
[368470195,1751187072268,-269.0,0.00027893,2]
[368470196,1751187072277,-269.0,0.00027893,2]
[368470197,1751187072286,-269.0,0.00027893,2]
[368470198,1751187072295,-269.0,0.00027893,2]
[368470199,1751187072304,-269.0,0.00027893,2]
[368470200,1751187072313,-269.0,0.00027893,2]
[368470201,1751187072322,-269.0,0.00027893,2]
[368470202,1751187072331,-269.0,0.00027893,2]
[368470203,1751187072340,-269.0,0.00027893,2]
[368470204,1751187072350,-269.0,0.00027893,2]
[368470205,1751187072359,-269.0,0.00027893,2]
[368470206,1751187072368,-269.0,0.00027893,2]
[368470207,1751187072377,-269.0,0.00027893,2]
[368470208,1751187072387,-153.0,0.00027893,2]
[368470209,1751187072397,-153.0,0.00027893,2]
[368470210,1751187072406,-153.0,0.00027893,2]
[368470211,1751187072415,-153.0,0.00027893,2]
[368470212,1751187072424,-153.0,0.00027893,2]
[368470213,1751187072434,-153.0,0.00027893,2]
[368470214,1751187072443,-153.0,0.00027893,2]
[368470215,1751187072452,-153.0,0.00027893,2]
[368470216,1751187072461,-153.0,0.00027893,2]
[368470217,1751187072470,-269.0,0.00027893,2]
[368470218,1751187072479,-269.0,0.00027893,2]
[368470219,1751187072488,-269.0,0.00027893,2]
[368470220,1751187072497,-269.0,0.00027893,2]
[368470221,1751187072507,-269.0,0.00027893,2]
[368470222,1751187072516,-269.0,0.00027893,2]
[368470223,1751187072525,-269.0,0.00027893,2]
[368470224,1751187072534,-269.0,0.00027893,2]
[368470225,1751187072544,-269.0,0.00027893,2]
[368470226,1751187072553,-269.0,0.00027893,2]
[368470227,1751187072562,-269.0,0.00027893,2]
[368470228,1751187072572,-269.0,0.00027893,2]
[368470229,1751187072581,-269.0,0.00027893,2]
[368470230,1751187072591,-269.0,0.00027893,2]
[368470231,1751187072601,-153.0,0.00027893,2]
[368470232,1751187072610,-153.0,0.00027893,2]
[368470233,1751187072620,-153.0,0.00027893,2]
[368470234,1751187072629,-153.0,0.00027893,2]
[368470235,1751187072638,-153.0,0.00027893,2]
[368470236,1751187072648,-153.0,0.00027893,2]
[368470237,1751187072658,-153.0,0.00027893,2]
[368470238,1751187072667,-89.72812748,0.00027893,2]
[368470239,1751187072684,-63.27187252,0.00027893,2]
[368470240,1751187072694,-269.0,0.00027893,2]
[368470241,1751187072703,-269.0,0.00027893,2]
[368470242,1751187072713,-269.0,0.00027893,2]
[368470243,1751187072723,-269.0,0.00027893,2]
[368470244,1751187072732,-153.0,0.00027893,2]
[368470245,1751187072741,-153.0,0.00027893,2]
[368470246,1751187072751,-153.0,0.00027893,2]
[368470247,1751187072760,-153.0,0.00027893,2]
[368470248,1751187072769,-153.0,0.00027893,2]
[368470249,1751187072779,-6731.53979212,0.00027893,2]
[368470250,1751187072788,-25995.72682738,0.00027896,2]
[368470251,1751187072798,-251.14043866,0.00027898,2]
[368470252,1751187072807,-6731.53979212,0.00027899,2]
[368470253,1751187072817,-19141.52551488,0.00027899,2]
[368470254,1751187072840,-10045.9235845,0.00027899,2]
[368470255,1751187072851,-2507.03918274,0.00027899,2]
[368470256,1751187072863,-3137.45102625,0.00027899,2]
[368470257,1751187073578,-548.46,0.00027397,3]
[368470258,1751187073588,-490.0,0.00027397,3]
[368470259,1751187073597,-548.46,0.00027671,3]
[368470260,1751187073606,-1784.11497108,0.00027845,2]
[368470261,1751187073616,-4105.42081748,0.00027899,2]
[368470262,1751187073625,-1000.0,0.000279,10]
[368470263,1751187073637,-386.44922283,0.000279,2]
[368470264,1751187073647,-386.44922272,0.000279,2]
[368470265,1751187073655,-344.15082971,0.000279,18]
[368470266,1751187073665,-386.44922272,0.000279,2]
[368470267,1751187073674,-386.44922272,0.000279,2]
[368470268,1751187073683,-386.44922272,0.000279,2]
[368470269,1751187073693,-386.44922272,0.000279,2]
[368470270,1751187073702,-386.44922272,0.000279,2]
[368470271,1751187073712,-386.44922272,0.000279,2]
[368470272,1751187073721,-386.44922272,0.000279,2]
[368470273,1751187073730,-386.44922272,0.000279,2]
[368470274,1751187073740,-386.44922272,0.000279,2]
[368470275,1751187073749,-348.34518441,0.000279,2]
[368470276,1751187073761,-38.10403831,0.000279,2]
[368470277,1751187073770,-386.44922272,0.000279,2]
[368470278,1751187073780,-386.44922272,0.000279,2]
[368470279,1751187073789,-386.44922272,0.000279,2]
[368470280,1751187073799,-1000.0,0.00027921,5]
[368470281,1751187073810,-502.3980493,0.00027921,5]
[368470282,1751187073819,-433.32661047,0.00027921,2]
[368470283,1751187075085,-490.0,0.00027397,3]
[368470284,1751187075095,-490.0,0.00027397,3]
[368470285,1751187075105,-490.0,0.00027397,3]
[368470286,1751187075114,-490.0,0.00027397,3]
[368470287,1751187075123,-490.0,0.00027397,3]
[368470288,1751187075133,-490.0,0.00027671,3]
[368470289,1751187075143,-490.0,0.00027671,3]
[368470290,1751187075152,-490.0,0.00027671,3]
[368470291,1751187075162,-490.0,0.00027671,3]
[368470292,1751187075171,-490.0,0.00027671,3]
[368470293,1751187075181,-490.0,0.00027671,3]
[368470294,1751187075190,-386.44922272,0.000279,2]
[368470295,1751187075199,-566.67338953,0.00027921,2]
[368470296,1751187075209,-162.11310313,0.00027921,5]
[368470297,1751187075219,-1000.0,0.00027921,5]
[368470298,1751187075228,-359.94958494,0.00027921,5]
[368470299,1751187075238,-502.28226074,0.00027921,5]
[368470300,1751187075247,-1000.0,0.00027921,5]
[368470301,1751187075257,-1000.0,0.00027921,3]
[368470302,1751187075267,-185.02695779,0.00027929,2]
[368470303,1751187075276,-152.95574294,0.00027936,2]
[368470304,1751187075285,-666.0,0.00027944,10]
[368470305,1751187075294,-973.06,0.00027944,3]
[368470306,1751187075304,-973.06,0.00027944,3]